bitfinex-derivatives/quotes_BNBF0:USTF0_20250211
["timestamp","ask_amount","ask_price","bid_price","bid_amount"]
[1739238170511,1.46543012,620.54,619.33,0.32292961]
[1739238171212,1.07463385,620.55,619.33,0.32292961]
[1739238171413,1.07463385,620.53,619.33,0.32292961]
[1739238172113,0.32228435,620.57,619.33,0.32292961]
[1739238174616,1.4652929,620.56,619.33,0.32292961]
[1739238175115,1.07463385,620.55,619.33,0.32292961]
[1739238175316,1.4652929,620.54,619.33,0.32292961]
[1739238175616,2.54247033,620.53,619.33,0.32292961]
[1739238175817,1.07724282,620.53,619.33,0.32292961]
[1739238176317,0.32228435,620.57,619.33,0.32292961]
[1739238176510,1.46508238,620.56,619.33,0.32292961]
[1739238177311,1.07724282,620.55,619.33,0.32292961]
[1739238177516,1.46508238,620.54,619.33,0.32292961]
[1739238178120,1.07724282,620.53,619.33,0.32292961]
[1739238178516,0.32228435,620.57,619.33,0.32292961]
[1739238178817,1.46500509,620.56,619.33,0.32292961]
[1739238179116,1.07724282,620.55,619.33,0.32292961]
[1739238179317,1.46500509,620.54,619.33,0.32292961]
[1739238179911,1.07724282,620.53,619.33,0.32292961]
[1739238180119,1.07724282,620.56,619.33,0.32292961]
[1739238180316,1.46497288,620.55,619.33,0.32292961]
[1739238181318,1.07724282,620.54,619.33,0.32292961]
[1739238181517,1.46497288,620.53,619.33,0.32292961]
[1739238181716,1.07724282,620.54,619.33,0.32292961]
[1739238182215,1.07724282,620.56,619.33,0.32292961]
[1739238183713,1.46502241,620.55,619.33,0.32292961]
[1739238184314,1.07724282,620.54,619.33,0.32292961]
[1739238184512,1.46502241,620.53,619.33,0.32292961]
[1739238184918,1.07724282,620.52,619.33,0.32292961]
[1739238185111,1.46502241,620.51,619.33,0.32292961]
[1739238185316,1.07724282,620.5,619.33,0.32292961]
[1739238185515,1.46502241,620.49,619.33,0.32292961]
[1739238185820,1.07724282,620.48,619.33,0.32292961]
[1739238186716,1.07724282,620.56,619.33,0.32292961]
[1739238186919,1.07724282,620.47,619.33,0.32292961]
[1739238187621,1.07724282,620.56,619.33,0.32292961]
[1739238187820,1.46462275,620.55,619.33,0.32292961]
[1739238188420,1.07724282,620.54,619.33,0.32292961]
[1739238188719,1.46462275,620.53,619.33,0.32292961]
[1739238189518,1.07724282,620.52,619.33,0.32292961]
[1739238189719,1.46462275,620.51,619.33,0.32292961]
[1739238190324,1.07724282,620.5,619.33,0.32292961]
[1739238190519,1.46462275,620.49,619.33,0.32292961]
[1739238190926,1.07724282,620.48,619.33,0.32292961]
[1739238191322,1.46479728,620.47,619.33,0.32292961]
[1739238191524,1.07724282,620.48,619.33,0.32292961]
[1739238192028,1.07724282,620.56,619.33,0.32292961]
[1739238192227,1.46481691,620.55,619.33,0.32292961]
[1739238192626,1.07724282,620.54,619.33,0.32292961]
[1739238192926,1.46481691,620.53,619.33,0.32292961]
[1739238193328,1.07724282,620.52,619.33,0.32292961]
[1739238193623,1.46481691,620.51,619.33,0.32292961]
[1739238194724,1.07724282,620.5,619.33,0.32292961]
[1739238194926,1.46467613,620.49,619.33,0.32292961]
[1739238195729,1.07724282,620.48,619.33,0.32292961]
[1739238195930,1.4647871,620.47,619.33,0.32292961]
[1739238196229,1.07724282,620.48,619.33,0.32292961]
[1739238196426,1.07724282,620.46,619.33,0.32292961]
[1739238197032,1.07724282,620.56,619.33,0.32292961]
[1739238197329,1.46483038,620.55,619.33,0.32292961]
[1739238197729,1.07724282,620.54,619.33,0.32292961]
[1739238197930,1.46483038,620.53,619.33,0.32292961]
[1739238198531,1.07724282,620.52,619.33,0.32292961]
[1739238198729,1.46483038,620.51,619.33,0.32292961]
[1739238199033,1.07724282,620.5,619.33,0.32292961]
[1739238199235,1.46483038,620.49,619.39,1.19824383]
[1739238199829,1.07724282,620.48,619.39,1.19824383]
[1739238200033,1.46465983,620.47,619.4,0.32289312]
[1739238200233,1.07724282,620.46,619.4,0.32289312]
[1739238201237,1.07724282,620.56,619.53,1.19824383]
[1739238201434,1.46469916,620.55,619.53,1.19824383]
[1739238201833,1.07724282,620.54,619.53,1.19824383]
[1739238202037,1.46469916,620.53,619.53,1.19824383]
[1739238203039,1.07724282,620.52,619.53,1.19824383]
[1739238203234,1.46469916,620.51,619.48,1.19824383]
[1739238203537,1.46469916,620.51,619.49,0.32284621]
[1739238203838,1.07724282,620.5,619.49,0.32284621]
[1739238204039,1.46469916,620.49,619.49,0.32284621]
[1739238204235,1.07724282,620.5,619.49,0.32284621]
[1739238204636,1.4644499,620.49,619.49,0.32284621]
[1739238204840,1.07724282,620.5,619.49,0.32284621]
[1739238205041,1.46442057,620.49,619.49,0.32284621]
[1739238205441,1.07724282,620.48,619.49,0.32284621]
[1739238205642,1.46442057,620.47,619.49,0.32284621]
[1739238205841,1.07724282,620.48,619.49,0.32284621]
[1739238206239,1.07724282,620.56,619.49,0.32284621]
[1739238206439,1.46424178,620.55,619.49,0.32284621]
[1739238206838,1.07724282,620.54,619.49,0.32284621]
[1739238207138,2.5414846,620.53,619.49,0.32284621]
[1739238207343,1.46424178,620.52,619.49,0.32284621]
[1739238207746,1.07724282,620.51,619.49,0.32284621]
[1739238208045,1.46424178,620.5,619.49,0.32284621]
[1739238208441,1.46407488,620.49,619.49,0.32284621]
[1739238208638,1.46407488,620.48,619.49,0.32284621]
[1739238208845,1.46407488,620.47,619.49,0.32284621]
[1739238209144,1.46407488,620.46,619.49,0.32284621]
[1739238209543,1.07724282,620.45,619.49,0.32284621]
[1739238209744,1.46407488,620.44,619.49,0.32284621]
[1739238210345,1.07724282,620.43,619.49,0.32284621]
[1739238210546,1.46407488,620.42,619.49,0.32284621]
[1739238211245,1.07724282,620.41,619.49,0.32284621]
[1739238211446,1.46407488,620.4,619.49,0.32284621]
[1739238211646,2.5413177,620.4,619.49,0.32284621]
[1739238211846,1.46407488,620.39,619.49,0.32284621]
[1739238212340,1.07724282,620.38,619.49,0.32284621]
[1739238212542,1.46407488,620.37,619.49,0.32284621]
[1739238213547,1.07724282,620.36,619.49,0.32284621]
[1739238213747,1.46407488,620.35,619.49,0.32284621]
[1739238214345,1.07724282,620.34,619.49,0.32284621]
[1739238214844,1.46389397,620.33,619.49,0.32284621]
[1739238215243,1.46389397,620.32,619.49,0.32284621]
[1739238215446,1.46389397,620.31,619.49,0.32284621]
[1739238215641,1.07724282,620.56,619.49,0.32284621]
[1739238215847,1.07724282,620.3,619.49,0.32284621]
[1739238216350,1.46371565,620.29,619.49,0.32284621]
[1739238216644,1.07724282,620.56,619.49,0.32284621]
[1739238216848,1.46326818,620.55,619.49,0.32284621]
[1739238217049,1.46326818,620.54,619.49,0.32284621]
[1739238217242,1.46326818,620.53,619.49,0.32284621]
[1739238217446,1.46326818,620.52,619.49,0.32284621]
[1739238217644,1.07724282,620.54,619.49,0.32284621]
[1739238217846,1.07724282,620.51,619.49,0.32284621]
[1739238218047,1.46345719,620.5,619.49,0.32284621]
[1739238218249,1.46345719,620.49,619.49,0.32284621]
[1739238218449,1.46345719,620.48,619.49,0.32284621]
[1739238218650,1.46345719,620.47,619.49,0.32284621]
[1739238218946,2.54109354,620.46,619.49,0.32284621]
[1739238219149,1.46385072,620.45,619.49,0.32284621]
[1739238219349,1.46385072,620.44,619.49,0.32284621]
[1739238219650,1.46385072,620.43,619.49,0.32284621]
[1739238219852,1.46385072,620.42,619.49,0.32284621]
[1739238220355,1.07724282,620.41,619.49,0.32284621]
[1739238220653,1.46385072,620.4,619.49,0.32284621]
[1739238220855,1.07724282,620.39,619.49,0.32284621]
[1739238221055,1.46463634,620.38,619.49,0.32284621]
[1739238221456,1.07724282,620.37,619.49,0.32284621]
[1739238221755,1.46463634,620.36,619.49,0.32284621]
[1739238222256,1.07724282,620.35,619.49,0.32284621]
[1739238222450,2.54187916,620.34,619.49,0.32284621]
[1739238222652,1.46463634,620.33,619.49,0.32284621]
[1739238222854,1.07724282,620.34,619.49,0.32284621]
[1739238223053,0.32228435,620.57,619.49,0.32284621]
[1739238223054,1.07724282,620.33,619.49,0.32284621]
[1739238223554,1.07724282,620.56,619.49,0.32284621]
[1739238223755,1.46648827,620.55,619.49,0.32284621]
[1739238223954,1.46648827,620.54,619.49,0.32284621]
[1739238224250,1.46648827,620.53,619.49,0.32284621]
[1739238224455,1.07724282,620.54,619.49,0.32284621]
[1739238224456,1.46648827,620.52,619.49,0.32284621]
[1739238224755,2.54373109,620.51,619.49,0.32284621]
[1739238224955,1.46648827,620.5,619.49,0.32284621]
[1739238225155,1.46654493,620.49,619.49,0.32284621]
[1739238225356,1.46649838,620.48,619.49,0.32284621]
[1739238225556,1.46649838,620.47,619.49,0.32284621]
[1739238225858,2.5437412,620.46,619.49,0.32284621]
[1739238226051,2.5437412,620.45,619.49,0.32284621]
[1739238226256,1.46649838,620.44,619.49,0.32284621]
[1739238226456,1.07724282,620.45,619.49,0.32284621]
[1739238226457,1.46649838,620.43,619.49,0.32284621]
[1739238226651,1.46649838,620.42,619.49,0.32284621]
[1739238226852,1.46649838,620.41,619.49,0.32284621]
[1739238227052,1.46649838,620.4,619.49,0.32284621]
[1739238227357,2.5437412,620.39,619.49,0.32284621]
[1739238227553,1.46649838,620.38,619.49,0.32284621]
[1739238227859,2.5437412,620.38,619.49,0.32284621]
[1739238228158,2.5437412,620.37,619.49,0.32284621]
[1739238228352,1.46649838,620.36,619.49,0.32284621]
[1739238228858,1.07724282,620.35,619.49,0.32284621]
[1739238229058,1.46649838,620.34,619.49,0.32284621]
[1739238229258,2.5437412,620.34,619.49,0.32284621]
[1739238229459,1.46652495,620.33,619.49,0.32284621]
[1739238229758,1.07724282,620.32,619.49,0.32284621]
[1739238229958,2.54376777,620.31,619.49,0.32284621]
[1739238230158,1.46652495,620.3,619.49,0.32284621]
[1739238230559,1.07724282,620.29,619.49,0.32284621]
[1739238230952,1.07724282,620.28,619.49,0.32284621]
[1739238231558,1.07724282,620.56,619.49,0.32284621]
[1739238231758,1.46706281,620.55,619.49,0.32284621]
[1739238231959,1.46706281,620.54,619.49,0.32284621]
[1739238232260,2.54430563,620.53,619.49,0.32284621]
[1739238232456,1.46706281,620.52,619.49,0.32284621]
[1739238232656,1.46706281,620.51,619.49,0.32284621]
[1739238232961,1.46706281,620.5,619.49,0.32284621]
[1739238233161,1.46706281,620.49,619.49,0.32284621]
[1739238233355,1.46706281,620.48,619.49,0.32284621]
[1739238233559,1.46706281,620.47,619.49,0.32284621]
[1739238233759,2.54430563,620.46,619.49,0.32284621]
[1739238233955,1.46706281,620.45,619.49,0.32284621]
[1739238234161,1.46706281,620.44,619.49,0.32284621]
[1739238234460,1.46706281,620.43,619.49,0.32284621]
[1739238234659,1.46706281,620.42,619.49,0.32284621]
[1739238234860,1.46706281,620.41,619.49,0.32284621]
[1739238235061,2.54430563,620.4,619.49,0.32284621]
[1739238235257,1.46706281,620.39,619.49,0.32284621]
[1739238235461,1.07724282,620.4,619.49,0.32284621]
[1739238235663,1.07724282,620.38,619.49,0.32284621]
[1739238235962,1.4674037,620.37,619.49,0.32284621]
[1739238236360,1.07724282,620.36,619.49,0.32284621]
[1739238236557,1.4674037,620.35,619.49,0.32284621]
[1739238236963,1.07724282,620.34,619.49,0.32284621]
[1739238237155,1.4674037,620.33,619.49,0.32284621]
[1739238237357,1.07724282,620.32,619.49,0.32284621]
[1739238237560,1.4674037,620.31,619.49,0.32284621]
[1739238238159,1.07724282,620.3,619.49,0.32284621]
[1739238238463,1.4674037,620.29,619.49,0.32284621]
[1739238238763,2.54464652,620.29,619.49,0.32284621]
[1739238238962,1.4674037,620.28,619.49,0.32284621]
[1739238239163,2.54464652,620.28,619.49,0.32284621]
[1739238239366,1.4674037,620.27,619.49,0.32284621]
[1739238239664,2.54464652,620.27,619.49,0.32284621]
[1739238239864,1.07724282,620.27,619.49,0.32284621]
[1739238240262,1.07724282,620.26,619.49,0.32284621]
[1739238240660,1.46808395,620.25,619.49,0.32284621]
[1739238240965,1.46803244,620.24,619.49,0.32284621]
[1739238241160,0.32228435,620.57,619.49,0.32284621]
[1739238241161,1.46803244,620.23,619.49,0.32284621]
[1739238241465,1.46803244,620.22,619.49,0.32284621]
[1739238241663,1.07724282,620.22,619.49,0.32284621]
[1739238242164,0.32228435,620.57,619.49,0.32284621]
[1739238242165,1.07724282,620.56,619.49,0.32284621]
[1739238242362,1.46805662,620.55,619.49,0.32284621]
[1739238242564,2.54529944,620.54,619.49,0.32284621]
[1739238242859,1.46805662,620.53,619.49,0.32284621]
[1739238243063,1.46805662,620.52,619.49,0.32284621]
[1739238243258,1.46805662,620.51,619.49,0.32284621]
[1739238243463,1.46805662,620.5,619.49,0.32284621]
[1739238243666,1.46805662,620.49,619.49,0.32284621]
[1739238243858,1.46805662,620.48,619.49,0.32284621]
[1739238244065,2.54529944,620.47,619.49,0.32284621]
[1739238244262,1.46805662,620.46,619.49,0.32284621]
[1739238244462,2.54529944,620.45,619.49,0.32284621]
[1739238244665,1.46805662,620.44,619.49,0.32284621]
[1739238244864,1.46805662,620.43,619.49,0.32284621]
[1739238245166,2.54529944,620.42,619.49,0.32284621]
[1739238245367,1.46805662,620.41,619.49,0.32284621]
[1739238245565,2.54529944,620.4,619.49,0.32284621]
[1739238245766,1.46805662,620.39,619.49,0.32284621]
[1739238245962,1.46805662,620.38,619.49,0.32284621]
[1739238246162,1.46805662,620.37,619.49,0.32284621]
[1739238246363,2.54529944,620.36,619.49,0.32284621]
[1739238246566,1.46805662,620.35,619.49,0.32284621]
[1739238246771,1.46805662,620.34,619.49,0.32284621]
[1739238246970,1.46805662,620.33,619.49,0.32284621]
[1739238247170,1.46805662,620.32,619.49,0.32284621]
[1739238247372,1.46805662,620.31,619.49,0.32284621]
[1739238247563,0.32228435,620.57,619.49,0.32284621]
[1739238247564,1.46805662,620.3,619.49,0.32284621]
[1739238247769,1.46743267,620.29,619.49,0.32284621]
[1739238247971,2.54467549,620.28,619.49,0.32284621]
[1739238248166,2.54467549,620.27,619.49,0.32284621]
[1739238248471,1.46743267,620.26,619.49,0.32284621]
[1739238248673,1.07724282,620.25,619.49,0.32284621]
[1739238248873,1.46743267,620.24,619.49,0.32284621]
[1739238249368,1.07724282,620.23,619.49,0.32284621]
[1739238249574,1.46743267,620.22,619.49,0.32284621]
[1739238249974,1.07724282,620.21,619.49,0.32284621]
[1739238250167,1.46743267,620.2,619.49,0.32284621]
[1739238250472,1.07724282,620.19,619.49,0.32284621]
[1739238250672,1.46743267,620.18,619.49,0.32284621]
[1739238251277,1.07724282,620.17,619.49,0.32284621]
[1739238251875,1.07724282,620.16,619.49,0.32284621]
[1739238252075,1.07724282,620.15,619.49,0.32284621]
[1739238253171,1.07724282,620.56,619.49,0.32284621]
[1739238253371,1.76469213,620.55,619.49,0.32284621]
[1739238253567,1.76469213,620.54,619.49,0.32284621]
[1739238253770,1.79068618,620.53,619.49,0.32284621]
[1739238253973,2.0870009,620.52,619.49,0.32284621]
[1739238254174,2.08700609,620.51,619.49,0.32284621]
[1739238254374,2.08701128,620.5,619.49,0.32284621]
[1739238254575,1.76469058,620.49,619.49,0.32284621]
[1739238254772,1.76469058,620.48,619.49,0.32284621]
[1739238254975,2.8419334,620.47,619.49,0.32284621]
[1739238255177,1.76469058,620.46,619.49,0.32284621]
[1739238255372,1.76469058,620.45,619.49,0.32284621]
[1739238255572,1.76505252,620.44,619.49,0.32284621]
[1739238255877,1.76505252,620.43,619.49,0.32284621]
[1739238256077,1.76505252,620.42,619.49,0.32284621]
[1739238256279,1.46872383,620.41,619.49,0.32284621]
[1739238256481,1.46872383,620.4,619.49,0.32284621]
[1739238256774,2.54596665,620.39,619.49,0.32284621]
[1739238256978,1.46872383,620.38,619.49,0.32284621]
[1739238257173,1.46872383,620.37,619.49,0.32284621]
[1739238257374,1.46872383,620.36,619.49,0.32284621]
[1739238257577,2.54596665,620.35,619.49,0.32284621]
[1739238257776,1.46872383,620.34,619.49,0.32284621]
[1739238257976,1.07724282,620.35,619.49,0.32284621]
[1739238257977,1.46872383,620.33,619.49,0.32284621]
[1739238258182,1.46872383,620.32,619.49,0.32284621]
[1739238258377,1.46872383,620.31,619.49,0.32284621]
[1739238258676,1.46872383,620.3,619.49,0.32284621]
[1739238258880,1.46872383,620.29,619.49,0.32284621]
[1739238259081,1.46872383,620.28,619.49,0.32284621]
[1739238259282,1.46872383,620.27,619.49,0.32284621]
[1739238259586,1.46872383,620.26,619.49,0.32284621]
[1739238259777,1.46856395,620.25,619.49,0.32284621]
[1739238259975,1.46856395,620.24,619.49,0.32284621]
[1739238260174,1.46856395,620.23,619.49,0.32284621]
[1739238260378,1.46856395,620.22,619.49,0.32284621]
[1739238260580,1.46856395,620.21,619.49,0.32284621]
[1739238260777,1.46856395,620.2,619.49,0.32284621]
[1739238260981,1.46856395,620.19,619.49,0.32284621]
[1739238261882,2.54584561,620.18,619.49,0.32284621]
[1739238262083,1.46860279,620.17,619.49,0.32284621]
[1739238262283,1.46850706,620.16,619.49,0.32284621]
[1739238262579,1.46850706,620.15,619.49,0.32284621]
[1739238262784,1.46850706,620.14,619.49,0.32284621]
[1739238263285,1.07724282,620.13,619.49,0.32284621]
[1739238263581,1.46850706,620.12,619.49,0.32284621]
[1739238263786,2.54574988,620.12,619.49,0.32284621]
[1739238264084,1.46850706,620.11,619.49,0.32284621]
[1739238264483,1.07724282,620.1,619.49,0.32284621]
[1739238265083,1.46822031,620.09,619.49,0.32284621]
[1739238265283,1.07724282,620.09,619.49,0.32284621]
[1739238265886,1.07724282,620.08,619.49,0.32284621]
[1739238266489,1.07724282,620.07,619.49,0.32284621]
[1739238267188,1.07724282,620.07,619.4,1.68493764]
[1739238267387,1.07724282,620.06,619.4,1.68493764]
[1739238267687,1.07724282,620.49,619.4,1.68493764]
[1739238267882,1.46825631,620.48,619.4,1.68493764]
[1739238268087,1.7905926,620.47,619.4,1.68493764]
[1739238268287,1.79059779,620.46,619.4,1.68493764]
[1739238268487,1.79060299,620.45,619.4,1.68493764]
[1739238268688,1.79060818,620.44,619.4,1.68493764]
[1739238268888,1.46825631,620.43,619.4,1.68493764]
[1739238269190,2.54549913,620.42,619.4,1.68493764]
[1739238269389,1.46825631,620.41,619.4,1.68493764]
[1739238269591,1.46825631,620.4,619.4,1.68493764]
[1739238269797,1.46825631,620.39,619.4,1.68493764]
[1739238269989,1.46825631,620.38,619.4,1.68493764]
[1739238270191,1.46825631,620.37,619.4,1.68493764]
[1739238270488,2.54549913,620.36,619.4,1.68493764]
[1739238270692,1.46825631,620.35,619.4,1.68493764]
[1739238270987,1.46825631,620.34,619.4,1.68493764]
[1739238271192,1.46825631,620.33,619.4,1.68493764]
[1739238271385,1.46825631,620.32,619.4,1.68493764]
[1739238271586,1.46825631,620.31,619.4,1.68493764]
[1739238271890,1.46825631,620.3,619.4,1.68493764]
[1739238272089,1.46825631,620.29,619.4,1.68493764]
[1739238272287,1.46825631,620.28,619.4,1.68493764]
[1739238272490,2.54549913,620.27,619.4,1.68493764]
[1739238272693,1.46754632,620.26,619.4,1.68493764]
[1739238272896,1.07724282,620.25,619.4,1.68493764]
[1739238273090,1.46754632,620.24,619.4,1.68493764]
[1739238273590,1.46754632,620.23,618.92,1.19824383]
[1739238273787,1.46754632,620.22,618.93,0.32313831]
[1739238273990,1.46754632,620.21,618.93,0.32313831]
[1739238274190,1.46754632,620.2,618.94,1.68508722]
[1739238274496,1.46754632,620.19,618.95,0.32312787]
[1739238274696,1.46754632,620.18,618.95,0.32312787]
[1739238274895,1.46754632,620.17,618.95,0.32312787]
[1739238275096,2.54478914,620.16,618.95,0.32312787]
[1739238275391,1.46754632,620.15,618.95,0.32312787]
[1739238275795,1.07724282,620.14,618.95,0.32312787]
[1739238275994,1.46754632,620.13,618.95,0.32312787]
[1739238276690,1.07724282,620.12,618.95,0.32312787]
[1739238276890,1.46754632,620.11,618.95,0.32312787]
[1739238277696,1.07724282,620.1,618.95,0.32312787]
[1739238277896,1.46754632,620.09,618.95,0.32312787]
[1739238278795,1.07724282,620.08,618.95,0.32312787]
[1739238279095,1.46754632,620.07,618.95,0.32312787]
[1739238279796,1.07724282,620.06,618.95,0.32312787]
[1739238279990,1.46754632,620.05,618.95,0.32312787]
[1739238280193,1.07724282,620.04,618.95,0.32312787]
[1739238280395,1.46754632,620.03,618.95,0.32312787]
[1739238280793,1.07724282,620.02,618.95,0.32312787]
[1739238280997,1.46754632,620.01,618.95,0.32312787]
[1739238281701,1.07724282,620.0,618.95,0.32312787]
[1739238282703,1.07724282,620.43,618.95,0.32312787]
[1739238283001,0.32236746,620.41,618.95,0.32312787]
[1739238283196,1.75995218,620.4,618.95,0.32312787]
[1739238283399,2.08233003,620.39,618.95,0.32312787]
[1739238283598,2.08233523,620.38,618.95,0.32312787]
[1739238283799,3.15958325,620.37,618.95,0.32312787]
[1739238283999,2.08234562,620.36,618.95,0.32312787]
[1739238284199,3.15959364,620.35,618.95,0.32312787]
[1739238284397,2.08235602,620.34,618.95,0.32312787]
[1739238284600,2.08236122,620.33,618.95,0.32312787]
[1739238284802,2.08202729,620.32,618.95,0.32312787]
[1739238285001,2.08203249,620.31,618.95,0.32312787]
[1739238285202,2.08203769,620.3,618.95,0.32312787]
[1739238285502,2.08203868,620.29,618.95,0.32312787]
[1739238285699,2.83685167,620.28,618.95,0.32312787]
[1739238285895,1.78562058,620.27,618.95,0.32312787]
[1739238286099,2.8628686,620.26,618.95,0.32312787]
[1739238286299,1.46318036,620.25,618.95,0.32312787]
[1739238286699,1.07724282,620.24,618.95,0.32312787]
[1739238286899,1.78564138,620.23,618.95,0.32312787]
[1739238287102,1.46318036,620.22,618.95,0.32312787]
[1739238287300,1.07724282,620.21,618.95,0.32312787]
[1739238287600,1.46318036,620.2,618.95,0.32312787]
[1739238288000,1.07724282,620.19,618.95,0.32312787]
[1739238288206,1.46318036,620.18,618.95,0.32312787]
[1739238288406,2.54042318,620.18,618.95,0.32312787]
[1739238288603,1.46318036,620.17,618.95,0.32312787]
[1739238289002,2.54006252,620.16,618.95,0.32312787]
[1739238289201,1.4628197,620.15,618.95,0.32312787]
[1739238289506,2.54006252,620.15,618.95,0.32312787]
[1739238289710,1.4628197,620.14,618.95,0.32312787]
[1739238289904,1.07724282,620.13,618.95,0.32312787]
[1739238290105,1.4628197,620.12,618.95,0.32312787]
[1739238290306,1.07724282,620.11,618.95,0.32312787]
[1739238290508,1.4628197,620.1,618.95,0.32312787]
[1739238291208,1.07724282,620.09,618.95,0.32312787]
[1739238291405,1.4628197,620.08,618.95,0.32312787]
[1739238292310,1.07724282,620.07,618.95,0.32312787]
[1739238292610,1.4628197,620.06,618.95,0.32312787]
[1739238292804,1.07724282,620.05,618.95,0.32312787]
[1739238293003,1.4628197,620.04,618.95,0.32312787]
[1739238293702,1.07724282,620.03,618.95,0.32312787]
[1739238293907,1.4628197,620.02,618.95,0.32312787]
[1739238294410,1.07724282,620.01,618.95,0.32312787]
[1739238294808,1.07724282,620.2,618.95,0.32312787]
[1739238295008,1.46315252,620.19,618.95,0.32312787]
[1739238295511,1.46329335,620.18,618.95,0.32312787]
[1739238295712,2.54053617,620.17,618.95,0.32312787]
[1739238295910,1.46329335,620.16,618.95,0.32312787]
[1739238296105,1.07724282,620.15,618.95,0.32312787]
[1739238296307,1.46329335,620.14,618.95,0.32312787]
[1739238296512,1.07724282,620.13,618.95,0.32312787]
[1739238296808,1.46329335,620.12,618.95,0.32312787]
[1739238297110,1.07724282,620.11,618.95,0.32312787]
[1739238297311,1.4632808,620.1,618.95,0.32312787]
[1739238297712,1.07724282,620.09,618.95,0.32312787]
[1739238297910,1.4632808,620.08,618.95,0.32312787]
[1739238298513,1.07724282,620.07,618.95,0.32312787]
[1739238298812,1.4632808,620.06,618.95,0.32312787]
[1739238299312,1.07724282,620.05,618.95,0.32312787]
[1739238299507,1.4632808,620.04,618.95,0.32312787]
[1739238299709,1.07724282,620.03,618.95,0.32312787]
[1739238300110,1.46385694,620.02,618.95,0.32312787]
[1739238300306,1.07724282,620.03,618.95,0.32312787]
[1739238300509,1.07724282,620.01,618.95,0.32312787]
[1739238301506,1.46419925,620.0,618.95,0.32312787]
[1739238301709,1.46419925,619.99,618.95,0.32312787]
[1739238301910,1.46413955,619.98,618.95,0.32312787]
[1739238302317,1.07724282,619.97,618.95,0.32312787]
[1739238302513,1.46413955,619.96,618.95,0.32312787]
[1739238303030,1.07724282,619.95,618.95,0.32312787]
[1739238303210,1.46413955,619.94,618.95,0.32312787]
[1739238303814,1.07724282,619.93,618.95,0.32312787]
[1739238304911,1.07724282,620.2,618.95,0.32312787]
[1739238305109,2.86289021,620.19,618.95,0.32312787]
[1739238305316,2.54040839,620.18,618.95,0.32312787]
[1739238305613,1.46316557,620.17,618.95,0.32312787]
[1739238305814,1.46316557,620.16,618.95,0.32312787]
[1739238306015,1.46316557,620.15,618.95,0.32312787]
[1739238306217,1.46316557,620.14,618.95,0.32312787]
[1739238306412,1.46316557,620.13,618.95,0.32312787]
[1739238306611,1.46316557,620.12,618.95,0.32312787]
[1739238307217,1.46271361,620.11,618.95,0.32312787]
[1739238307417,1.46271361,620.1,618.95,0.32312787]
[1739238308117,1.07724282,620.09,618.95,0.32312787]
[1739238308314,1.46271361,620.08,618.95,0.32312787]
[1739238308511,2.53995643,620.08,618.95,0.32312787]
[1739238308715,1.46271361,620.07,618.95,0.32312787]
[1739238308913,2.53995643,620.07,618.95,0.32312787]
[1739238309113,1.46271361,620.06,618.95,0.32312787]
[1739238309516,1.07724282,620.05,618.95,0.32312787]
[1739238309716,1.46271361,620.04,618.95,0.32312787]
[1739238310117,1.07724282,620.03,618.95,0.32312787]
[1739238310614,1.46397198,620.02,618.95,0.32312787]
[1739238310817,1.07724282,620.18,618.95,0.32312787]
[1739238311020,1.46398043,620.17,618.95,1.5213717]
[1739238311415,1.07724282,620.16,618.95,1.5213717]
[1739238311614,1.46398043,620.15,618.95,1.5213717]
[1739238312119,1.07724282,620.14,618.95,1.5213717]
[1739238312314,1.46398043,620.13,618.95,1.5213717]
[1739238312813,1.07724282,620.12,618.95,1.5213717]
[1739238313013,1.46398043,620.11,618.95,1.5213717]
[1739238313214,1.46398043,620.11,618.95,0.32312787]
[1739238313414,1.07724282,620.1,618.95,0.32312787]
[1739238313618,1.46398043,620.09,618.95,0.32312787]
[1739238314120,1.07724282,620.08,618.95,0.32312787]
[1739238314418,1.46398043,620.07,618.95,0.32312787]
[1739238314916,1.07724282,620.06,618.95,0.32312787]
[1739238315119,1.46398043,620.05,618.95,0.32312787]
[1739238315522,1.07724282,620.04,618.95,0.32312787]
[1739238315722,1.46398043,620.03,618.95,0.32312787]
[1739238316320,1.07724282,620.02,618.95,0.32312787]
[1739238317022,0.32248182,620.19,618.95,0.32312787]
[1739238317222,1.46596321,620.18,618.95,0.32312787]
[1739238317821,1.07793445,620.17,618.95,0.32312787]
[1739238318025,1.46596321,620.16,618.95,0.32312787]
[1739238318725,1.07793445,620.15,618.95,0.32312787]
[1739238318926,1.07793445,620.15,619.01,1.19824383]
[1739238319226,0.32248182,620.19,619.01,1.19824383]
[1739238319427,1.46667345,620.18,619.01,1.19824383]
[1739238319627,1.07793445,620.17,619.01,1.19824383]
[1739238319826,1.07793445,620.17,619.03,0.32308611]
[1739238320429,1.07793445,620.95,619.03,0.32308611]
[1739238320624,0.32209749,620.93,619.03,0.32308611]
[1739238320824,1.76292657,620.92,619.03,0.32308611]
[1739238321124,0.32211306,620.9,619.03,0.32308611]
[1739238321331,1.76292657,620.89,619.03,0.32308611]
[1739238321525,1.76274841,620.88,619.03,0.32308611]
[1739238321725,0.32211306,620.9,619.03,0.32308611]
[1739238321726,0.32213381,620.86,619.03,0.32308611]
[1739238321927,1.76259403,620.85,619.03,0.32308611]
[1739238322127,0.32214938,620.83,619.03,0.32308611]
[1739238322429,1.76259403,620.82,619.03,0.32308611]